[Event "9th RTU Rapid 2019"]
[Site "Riga"]
[Date "2019.08.04"]
[Round "2.13"]
[White "Shashnev, Pavel"]
[Black "Galchenko, Matvey"]
[Result "0-1"]
[WhiteElo "2021"]
[BlackElo "2360"]
[PlyCount "66"]
[EventDate "2019.08.05"]
[EventType "swiss"]
[EventCountry "LAT"]
[TimeControl "5400+30"]
[WhiteClock "0:01:49"]
[BlackClock "0:00:07"]

1. e4 {[%emt 1:15:21]} e6 {[%emt 1:15:22]} 2. d4 {[%emt 0:00:29]} d5 {[%emt 0:00:26]} 3. Nc3 {[%emt 0:00:26]} Bb4 {[%emt 0:00:26]} 4. Bd2 {[%emt 0:00:27]} dxe4 {[%emt 0:00:28]} 5. Nxe4 {[%emt 0:00:29]} Qxd4 {[%emt 0:00:44]} 6. Bd3 {[%emt 0:00:47]} Bxd2+ {[%emt 0:00:50]} 7. Qxd2 {[%emt 0:00:28]} Nc6 {[%emt 0:00:30]} 8. O-O-O {[%emt 0:00:46]} Nge7 {[%emt 0:01:04]} 9. Nf3 {[%emt 0:02:03]} Qb4 {[%emt 0:00:44]} 10. Qg5 {[%emt 0:00:44]} Ng6 {[%emt 0:00:45]} 11. h4 {[%emt 0:01:24]} Qe7 {[%emt 0:00:53]} 12. Qg3 {[%emt 0:00:55]} f5 {[%emt 0:00:55]} 13. Neg5 {[%emt 0:01:36]} O-O {[%emt 0:00:53]} 14. h5 {[%emt 0:01:38]} Nge5 {[%emt 0:02:16]} 15. Nxh7 {[%emt 0:04:40]} f4 {[%emt 0:06:03]} 16. Qg5 {[%emt 0:00:26]} Qxg5 {[%emt 0:01:05]} 17. Nhxg5 {[%emt 0:00:29]} Nxd3+ {[%emt 0:00:30]} 18. cxd3 {[%emt 0:00:30]} e5 {[%emt 0:00:40]} 19. Rde1 {[%emt 0:02:35]} Re8 {[%emt 0:00:53]} 20. d4 {[%emt 0:00:37]} Bf5 {[%emt 0:00:35]} 21. Nxe5 {[%emt 0:01:46]} Nxd4 {[%emt 0:00:28]} 22. Ngf3 {[%emt 0:01:00]} Rad8 {[%emt 0:00:44]} 23. h6 {[%emt 0:00:56]} Nc2 {[%emt 0:01:26]} 24. Reg1 {[%emt 0:01:17]} Nb4 {[%emt 0:00:32]} 25. b3 {[%emt 0:00:30]} Rd5 {[%emt 0:00:35]} 26. h7+ {[%emt 0:00:29]} Bxh7 {[%emt 0:00:33]} 27. Rd1 {[%emt 0:00:36]} Rc5+ {[%emt 0:00:41]} 28. Kb2 {[%emt 0:00:28]} Rc2+ {[%emt 0:00:40]} 29. Ka3 {[%emt 0:00:27]} c5 {[%emt 0:00:26]} 30. Ra1 {[%emt 0:00:32]} Re6 {[%emt 0:00:29]} 31. Ka4 {[%emt 0:00:31]} Be4 {[%emt 0:01:04]} 32. Rhd1 {[%emt 0:00:32]} Ra6+ {[%emt 0:00:33]} 33. Kb5 {[%emt 0:00:29]} Bc6+ {[%emt 0:00:28]} 0-1

[Event "9th RTU Rapid 2019"]
[Site "Riga"]
[Date "2019.08.04"]
[Round "2.14"]
[White "Suleymenov, Alisher"]
[Black "Sertbay, Huseyin"]
[Result "1-0"]
[WhiteElo "2348"]
[BlackElo "2066"]
[PlyCount "107"]
[EventDate "2019.08.05"]
[EventType "swiss"]
[EventCountry "LAT"]
[TimeControl "5400+30"]
[WhiteClock "0:00:09"]
[BlackClock "0:00:29"]

1. d4 {[%emt 1:15:22]} Nf6 {[%emt 1:15:31]} 2. c4 {[%emt 0:00:27]} c5 {[%emt 0:00:27]} 3. d5 {[%emt 0:00:26]} e5 {[%emt 0:00:26]} 4. Nc3 {[%emt 0:00:27]} d6 {[%emt 0:00:26]} 5. e4 {[%emt 0:00:27]} Nbd7 {[%emt 0:00:26]} 6. Nf3 {[%emt 0:03:23]} Be7 {[%emt 0:00:26]} 7. h3 {[%emt 0:01:21]} Nf8 {[%emt 0:00:29]} 8. Be3 {[%emt 0:06:10]} Ng6 {[%emt 0:00:28]} 9. Be2 {[%emt 0:00:41]} O-O {[%emt 0:00:29]} 10. O-O {[%emt 0:00:34]} h6 {[%emt 0:00:30]} 11. a3 {[%emt 0:00:59]} Nh7 {[%emt 0:00:30]} 12. b4 {[%emt 0:00:39]} b6 {[%emt 0:00:26]} 13. Rb1 {[%emt 0:01:20]} Ng5 {[%emt 0:01:42]} 14. bxc5 {[%emt 0:00:50]} bxc5 {[%emt 0:00:26]} 15. Rb2 {[%emt 0:01:50]} Nxf3+ {[%emt 0:02:28]} 16. Bxf3 {[%emt 0:00:26]} Bg5 {[%emt 0:01:10]} 17. Qd2 {[%emt 0:00:55]} Bf4 {[%emt 0:04:01]} 18. Ne2 {[%emt 0:01:26]} Qg5 {[%emt 0:01:37]} 19. Kh1 {[%emt 0:00:30]} Bxe3 {[%emt 0:01:35]} 20. Qxe3 {[%emt 0:00:34]} Qxe3 21. fxe3 {[%emt 0:00:26]} Ba6 {[%emt 0:00:54]} 22. Rfb1 {[%emt 0:00:36]} Bxc4 {[%emt 0:00:46]} 23. Nc3 {[%emt 0:00:26]} Nh4 {[%emt 0:01:50]} 24. Rb7 {[%emt 0:01:07]} Nxf3 {[%emt 0:01:55]} 25. gxf3 {[%emt 0:00:26]} Ba6 {[%emt 0:00:47]} 26. R7b2 {[%emt 0:00:55]} f5 {[%emt 0:00:44]} 27. Kg2 {[%emt 0:00:26]} fxe4 {[%emt 0:00:32]} 28. fxe4 {[%emt 0:00:37]} Rf6 {[%emt 0:00:37]} 29. Rb8+ {[%emt 0:00:29]} Rxb8 {[%emt 0:00:26]} 30. Rxb8+ {[%emt 0:00:26]} Rf8 {[%emt 0:00:36]} 31. Rb2 {[%emt 0:00:26]} Kh7 {[%emt 0:00:57]} 32. a4 {[%emt 0:00:31]} Kg6 {[%emt 0:00:50]} 33. Kg3 {[%emt 0:00:29]} Bd3 {[%emt 0:00:35]} 34. Rb7 {[%emt 0:00:28]} Rf7 {[%emt 0:00:30]} 35. Rb8 {[%emt 0:00:27]} Kh5 {[%emt 0:01:14]} 36. Rd8 {[%emt 0:00:31]} Rf6 {[%emt 0:00:29]} 37. Rd7 {[%emt 0:00:26]} a6 {[%emt 0:00:37]} 38. Rxg7 {[%emt 0:00:37]} Rg6+ {[%emt 0:00:26]} 39. Rxg6 {[%emt 0:00:26]} Kxg6 {[%emt 0:00:26]} 40. Kh4 {[%emt 0:00:38]} Bc2 {[%emt 0:00:34]} 41. a5 {[%emt 0:00:29]} Bd3 {[%emt 0:00:33]} 42. Kg4 {[%emt 0:00:26]} Bc2 {[%emt 0:00:40]} 43. Kf3 {[%emt 0:00:35]} Kh5 {[%emt 0:00:28]} 44. Nb5 {[%emt 0:00:36]} c4 {[%emt 0:00:54]} 45. Nxd6 {[%emt 0:00:27]} c3 {[%emt 0:00:25]} 46. Nc4 {[%emt 0:00:34]} Bb3 {[%emt 0:00:31]} 47. Nxe5 {[%emt 0:00:28]} Bc4 {[%emt 0:00:29]} 48. d6 {[%emt 0:00:31]} c2 {[%emt 0:00:27]} 49. d7 {[%emt 0:00:30]} c1=Q {[%emt 0:00:29]} 50. d8=Q {[%emt 0:00:26]} Qf1+ {[%emt 0:00:28]} 51. Kg3 {[%emt 0:00:26]} Qg1+ {[%emt 0:00:29]} 52. Kf4 {[%emt 0:00:27]} Qf2+ {[%emt 0:00:30]} 53. Nf3 {[%emt 0:00:26]} Bf7 {[%emt 0:00:40]} 54. Qf6 {[%emt 0:00:21]} 1-0

[Event "9th RTU Rapid 2019"]
[Site "Riga"]
[Date "2019.08.04"]
[Round "2.15"]
[White "Kolesnikovs, Ivans"]
[Black "Maltsevskaya, Aleksandra"]
[Result "0-1"]
[WhiteElo "2013"]
[BlackElo "2321"]
[PlyCount "120"]
[EventDate "2019.08.05"]
[EventType "swiss"]
[EventCountry "LAT"]
[TimeControl "5400+30"]
[WhiteClock "0:00:27"]
[BlackClock "0:00:57"]

1. e4 {[%emt 1:15:26]} c5 {[%emt 1:15:21]} 2. Nf3 {[%emt 0:00:28]} e6 {[%emt 0:00:28]} 3. d4 {[%emt 0:00:27]} cxd4 {[%emt 0:00:27]} 4. Nxd4 {[%emt 0:00:28]} Nc6 {[%emt 0:00:26]} 5. Be3 {[%emt 0:00:30]} Nf6 {[%emt 0:00:27]} 6. f3 {[%emt 0:00:32]} Qb6 {[%emt 0:00:55]} 7. Nc3 {[%emt 0:02:39]} Bc5 {[%emt 0:07:40]} 8. Na4 {[%emt 0:01:18]} Qa5+ {[%emt 0:00:27]} 9. c3 {[%emt 0:01:08]} Be7 {[%emt 0:02:08]} 10. Be2 {[%emt 0:02:37]} d5 {[%emt 0:00:27]} 11. O-O {[%emt 0:02:35]} Nxd4 {[%emt 0:01:31]} 12. Qxd4 {[%emt 0:01:11]} O-O {[%emt 0:02:29]} 13. e5 {[%emt 0:02:20]} Nd7 {[%emt 0:00:27]} 14. Bd1 {[%emt 0:01:20]} b5 {[%emt 0:00:55]} 15. b4 {[%emt 0:00:33]} Qc7 {[%emt 0:00:29]} 16. Nb2 {[%emt 0:00:50]} Nxe5 {[%emt 0:00:39]} 17. Nd3 {[%emt 0:01:48]} Nc4 {[%emt 0:01:58]} 18. Bf4 {[%emt 0:00:28]} Bd6 {[%emt 0:00:25]} 19. Bxd6 {[%emt 0:00:36]} Qxd6 {[%emt 0:00:27]} 20. Bb3 {[%emt 0:01:02]} e5 {[%emt 0:00:30]} 21. Qf2 {[%emt 0:00:52]} a5 {[%emt 0:00:35]} 22. a3 {[%emt 0:00:38]} axb4 {[%emt 0:00:28]} 23. axb4 {[%emt 0:00:29]} Bf5 {[%emt 0:00:56]} 24. Nc5 {[%emt 0:00:37]} h6 {[%emt 0:00:28]} 25. Bxc4 {[%emt 0:00:49]} bxc4 {[%emt 0:00:32]} 26. Ra2 {[%emt 0:00:29]} d4 {[%emt 0:00:53]} 27. Rd2 {[%emt 0:00:50]} d3 {[%emt 0:00:28]} 28. Re1 {[%emt 0:00:32]} Ra3 {[%emt 0:00:30]} 29. Rc1 {[%emt 0:00:38]} Rfa8 {[%emt 0:00:27]} 30. Nb7 {[%emt 0:00:30]} Qc7 {[%emt 0:00:56]} 31. Na5 {[%emt 0:00:27]} e4 {[%emt 0:00:29]} 32. fxe4 {[%emt 0:00:37]} Bxe4 {[%emt 0:00:26]} 33. Qd4 {[%emt 0:00:30]} Qf4 {[%emt 0:00:31]} 34. Rcd1 {[%emt 0:00:35]} f5 {[%emt 0:00:30]} 35. Rf2 {[%emt 0:00:28]} Qg4 {[%emt 0:00:29]} 36. Re1 {[%emt 0:00:30]} Kh7 {[%emt 0:00:29]} 37. h3 {[%emt 0:00:28]} Qg5 {[%emt 0:00:26]} 38. Rxe4 {[%emt 0:00:29]} fxe4 {[%emt 0:00:27]} 39. Qxe4+ {[%emt 0:00:25]} Qg6 {[%emt 0:00:26]} 40. Qxa8 {[%emt 0:00:26]} Rxc3 {[%emt 0:00:46]} 41. Rf8 {[%emt 0:00:29]} Qb6+ {[%emt 0:00:33]} 42. Kh1 {[%emt 0:00:40]} Rc1+ {[%emt 0:00:27]} 43. Kh2 {[%emt 0:00:26]} Qd6+ {[%emt 0:00:32]} 44. g3 {[%emt 0:00:27]} Rc2+ {[%emt 0:00:26]} 45. Kh1 {[%emt 0:00:26]} Qe6 {[%emt 0:00:31]} 46. Rh8+ {[%emt 0:00:38]} Kg6 {[%emt 0:00:26]} 47. Qe8+ {[%emt 0:00:26]} Qxe8 {[%emt 0:00:26]} 48. Rxe8 {[%emt 0:00:25]} d2 {[%emt 0:00:27]} 49. Rd8 {[%emt 0:00:29]} Rc1+ {[%emt 0:00:26]} 50. Kg2 {[%emt 0:00:26]} d1=Q {[%emt 0:00:27]} 51. Rxd1 {[%emt 0:00:27]} Rxd1 {[%emt 0:00:27]} 52. Nxc4 {[%emt 0:00:26]} Rd4 {[%emt 0:00:32]} 53. Ne5+ {[%emt 0:00:28]} Kf6 {[%emt 0:00:26]} 54. Nc6 {[%emt 0:00:28]} Rc4 {[%emt 0:00:28]} 55. Na5 {[%emt 0:00:31]} Rxb4 {[%emt 0:00:29]} 56. Nc6 {[%emt 0:00:26]} Rc4 {[%emt 0:00:30]} 57. Na5 {[%emt 0:00:27]} Rc3 {[%emt 0:00:27]} 58. Nb7 {[%emt 0:00:27]} Ke5 {[%emt 0:00:27]} 59. Nd8 {[%emt 0:00:26]} Kd6 {[%emt 0:00:47]} 60. Nb7+ {[%emt 0:00:30]} Kc7 {[%emt 0:00:31]} 0-1

[Event "9th RTU Rapid 2019"]
[Site "Riga"]
[Date "2019.08.04"]
[Round "2.16"]
[White "Nesteretz, Anatoliy"]
[Black "Vidruska, Renate"]
[Result "1-0"]
[WhiteElo "2317"]
[BlackElo "2057"]
[PlyCount "23"]
[EventDate "2019.08.05"]
[EventType "swiss"]
[EventCountry "LAT"]
[TimeControl "5400+30"]
[WhiteClock "0:02:23"]
[BlackClock "0:07:32"]

1. e4 {[%emt 1:15:26]} e5 {[%emt 1:15:23]} 2. Nf3 {[%emt 0:00:36]} Nf6 {[%emt 0:00:30]} 3. Nc3 {[%emt 0:01:25]} Nc6 {[%emt 0:00:35]} 4. a3 {[%emt 0:00:27]} d5 {[%emt 0:01:25]} 5. Bb5 {[%emt 0:01:27]} dxe4 {[%emt 0:01:24]} 6. Nxe5 {[%emt 0:00:29]} Qd6 {[%emt 0:00:55]} 7. d4 {[%emt 0:01:14]} exd3 {[%emt 0:01:04]} 8. O-O {[%emt 0:00:43]} Be6 {[%emt 0:01:21]} 9. Bf4 {[%emt 0:02:48]} Qc5 {[%emt 0:03:43]} 10. Qf3 {[%emt 0:01:48]} Nd5 {[%emt 0:04:45]} 11. Nxd3 {[%emt 0:01:20]} Qd4 {[%emt 0:02:02]} 12. Be5 {[%emt 0:00:45]} 1-0

[Event "9th RTU Rapid 2019"]
[Site "Riga"]
[Date "2019.08.04"]
[Round "2.17"]
[White "Babrauskas, Darius"]
[Black "Miedema, David"]
[Result "0-1"]
[WhiteElo "1988"]
[BlackElo "2313"]
[PlyCount "74"]
[EventDate "2019.08.05"]
[EventType "swiss"]
[EventCountry "LAT"]
[TimeControl "5400+30"]
[WhiteClock "0:08:12"]
[BlackClock "0:00:45"]

1. e4 {[%emt 1:15:25]} e6 {[%emt 1:15:25]} 2. d4 {[%emt 0:00:30]} d5 {[%emt 0:00:30]} 3. Nc3 {[%emt 0:00:30]} Bb4 {[%emt 0:00:30]} 4. e5 {[%emt 0:00:30]} Ne7 {[%emt 0:00:29]} 5. a3 {[%emt 0:00:23]} Bxc3+ {[%emt 0:00:26]} 6. bxc3 {[%emt 0:00:27]} c5 {[%emt 0:00:26]} 7. Qg4 {[%emt 0:00:27]} Qc7 {[%emt 0:00:27]} 8. Qxg7 {[%emt 0:00:45]} Rg8 {[%emt 0:00:26]} 9. Qxh7 {[%emt 0:00:26]} cxd4 {[%emt 0:00:28]} 10. Ne2 {[%emt 0:00:33]} dxc3 {[%emt 0:00:26]} 11. f4 {[%emt 0:00:26]} Nbc6 {[%emt 0:00:27]} 12. Qd3 {[%emt 0:00:32]} Bd7 {[%emt 0:00:26]} 13. Rg1 {[%emt 0:00:28]} Qb6 {[%emt 0:00:46]} 14. g4 {[%emt 0:02:54]} Rh8 {[%emt 0:00:38]} 15. h3 {[%emt 0:00:42]} d4 {[%emt 0:00:26]} 16. Bg2 {[%emt 0:01:28]} O-O-O {[%emt 0:00:32]} 17. Ng3 {[%emt 0:01:35]} Na5 {[%emt 0:02:22]} 18. a4 {[%emt 0:01:34]} Bc6 {[%emt 0:02:04]} 19. Ne4 {[%emt 0:01:20]} Nd5 {[%emt 0:00:41]} 20. Kf1 {[%emt 0:03:30]} Nb4 {[%emt 0:00:34]} 21. Qe2 {[%emt 0:00:37]} Bd5 {[%emt 0:00:33]} 22. Kf2 {[%emt 0:03:59]} d3+ {[%emt 0:01:26]} 23. Qe3 {[%emt 0:00:26]} d2 {[%emt 0:01:17]} 24. Qxb6 {[%emt 0:00:53]} axb6 {[%emt 0:00:31]} 25. Nd6+ {[%emt 0:00:51]} Rxd6 {[%emt 0:00:52]} 26. exd6 {[%emt 0:00:26]} Bxg2 {[%emt 0:00:58]} 27. Kxg2 {[%emt 0:00:26]} Nxc2 {[%emt 0:00:32]} 28. Rb1 {[%emt 0:00:52]} Ne3+ {[%emt 0:00:37]} 29. Kg3 {[%emt 0:00:26]} Nac4 {[%emt 0:00:45]} 30. Rb4 {[%emt 0:00:44]} Kd7 {[%emt 0:00:54]} 31. h4 {[%emt 0:00:33]} Kxd6 {[%emt 0:00:35]} 32. h5 {[%emt 0:00:35]} Kc5 {[%emt 0:00:26]} 33. Rb3 {[%emt 0:00:25]} Kd4 {[%emt 0:00:27]} 34. Kf3 {[%emt 0:00:35]} dxc1=Q {[%emt 0:00:37]} 35. Rxc1 {[%emt 0:00:38]} Nd2+ {[%emt 0:00:26]} 36. Ke2 {[%emt 0:00:28]} Nxb3 {[%emt 0:00:26]} 37. Rb1 {[%emt 0:00:26]} c2 {[%emt 0:00:27]} 0-1

[Event "9th RTU Rapid 2019"]
[Site "Riga"]
[Date "2019.08.04"]
[Round "2.18"]
[White "Kiik, Kalle"]
[Black "Gagare, Shalmali"]
[Result "0-1"]
[WhiteElo "2308"]
[BlackElo "1984"]
[PlyCount "78"]
[EventDate "2019.08.05"]
[EventType "swiss"]
[EventCountry "LAT"]
[TimeControl "5400+30"]
[WhiteClock "0:00:25"]
[BlackClock "0:02:38"]

1. Nf3 {[%emt 1:15:24]} d5 {[%emt 1:15:22]} 2. e3 {[%emt 0:00:29]} Nf6 {[%emt 0:00:32]} 3. b3 {[%emt 0:00:28]} e6 {[%emt 0:00:43]} 4. Bb2 {[%emt 0:00:27]} c6 {[%emt 0:00:40]} 5. c4 {[%emt 0:00:32]} Nbd7 {[%emt 0:00:30]} 6. d3 {[%emt 0:00:46]} Be7 {[%emt 0:00:53]} 7. Nbd2 {[%emt 0:00:27]} O-O {[%emt 0:00:29]} 8. Be2 {[%emt 0:00:32]} a5 {[%emt 0:00:47]} 9. a3 {[%emt 0:00:28]} Re8 {[%emt 0:00:57]} 10. O-O {[%emt 0:00:46]} Bd6 {[%emt 0:01:57]} 11. h3 {[%emt 0:02:08]} e5 {[%emt 0:01:13]} 12. cxd5 {[%emt 0:00:28]} Nxd5 {[%emt 0:00:44]} 13. Ne4 {[%emt 0:01:28]} Bc7 {[%emt 0:02:04]} 14. Rc1 {[%emt 0:00:35]} Qe7 {[%emt 0:01:01]} 15. Qc2 {[%emt 0:00:59]} f5 {[%emt 0:01:47]} 16. Nc3 {[%emt 0:00:45]} Nxc3 {[%emt 0:02:25]} 17. Qxc3 {[%emt 0:00:52]} e4 {[%emt 0:00:33]} 18. Nd2 {[%emt 0:00:51]} Nf6 {[%emt 0:01:34]} 19. Rfe1 {[%emt 0:00:37]} Be6 {[%emt 0:01:33]} 20. Bf1 {[%emt 0:00:53]} Rad8 {[%emt 0:00:39]} 21. dxe4 {[%emt 0:01:06]} fxe4 {[%emt 0:00:48]} 22. Nc4 {[%emt 0:00:37]} Nd5 {[%emt 0:00:59]} 23. Qc2 {[%emt 0:00:39]} Qg5 {[%emt 0:00:38]} 24. g3 {[%emt 0:03:52]} Bf5 {[%emt 0:00:38]} 25. Bg2 {[%emt 0:00:30]} Re6 {[%emt 0:00:35]} 26. b4 {[%emt 0:01:17]} axb4 {[%emt 0:00:39]} 27. axb4 {[%emt 0:00:26]} Nxb4 {[%emt 0:00:52]} 28. Qb3 {[%emt 0:00:28]} Nd3 {[%emt 0:00:32]} 29. Qxb7 {[%emt 0:00:36]} Nxe1 {[%emt 0:00:30]} 30. Rxe1 {[%emt 0:00:46]} Qe7 {[%emt 0:00:46]} 31. Ba3 {[%emt 0:01:22]} Qf7 {[%emt 0:00:43]} 32. Rc1 {[%emt 0:00:40]} Rh6 {[%emt 0:00:38]} 33. h4 {[%emt 0:00:37]} Be6 {[%emt 0:00:58]} 34. Qb4 {[%emt 0:01:02]} Rb8 {[%emt 0:00:38]} 35. Qc5 {[%emt 0:00:53]} Rf6 {[%emt 0:00:45]} 36. Nd6 {[%emt 0:00:36]} Bxd6 {[%emt 0:00:31]} 37. Qxd6 {[%emt 0:00:26]} Rc8 {[%emt 0:00:30]} 38. Rc2 {[%emt 0:00:34]} Bb3 {[%emt 0:00:34]} 39. Rd2 {[%emt 0:00:30]} Rxd6 {[%emt 0:00:28]} 0-1

[Event "9th RTU Rapid 2019"]
[Site "Riga"]
[Date "2019.08.04"]
[Round "2.19"]
[White "Daudzvardis, Janis"]
[Black "Lavendelis, Egons"]
[Result "0-1"]
[WhiteElo "2037"]
[BlackElo "2292"]
[PlyCount "66"]
[EventDate "2019.08.05"]
[EventType "swiss"]
[EventCountry "LAT"]
[TimeControl "5400+30"]
[WhiteClock "0:02:23"]
[BlackClock "0:03:36"]

1. f4 {[%emt 1:15:22]} d5 {[%emt 1:15:22]} 2. Nf3 {[%emt 0:00:27]} g6 {[%emt 0:00:26]} 3. g3 {[%emt 0:00:26]} Bg7 {[%emt 0:00:27]} 4. Bg2 {[%emt 0:00:26]} c5 {[%emt 0:00:26]} 5. O-O {[%emt 0:00:29]} Nc6 {[%emt 0:00:27]} 6. d3 {[%emt 0:00:27]} f5 {[%emt 0:00:42]} 7. c3 {[%emt 0:00:33]} Nf6 {[%emt 0:00:28]} 8. Ng5 {[%emt 0:00:30]} h6 {[%emt 0:00:41]} 9. Nh3 {[%emt 0:00:29]} O-O {[%emt 0:00:34]} 10. Nf2 {[%emt 0:00:26]} e5 {[%emt 0:01:15]} 11. e4 {[%emt 0:00:27]} fxe4 {[%emt 0:00:49]} 12. dxe4 {[%emt 0:00:28]} d4 {[%emt 0:01:23]} 13. fxe5 {[%emt 0:00:27]} Nd7 {[%emt 0:01:00]} 14. e6 {[%emt 0:00:49]} Nde5 {[%emt 0:00:27]} 15. cxd4 {[%emt 0:01:17]} Nxd4 {[%emt 0:00:33]} 16. Bf4 {[%emt 0:01:04]} Nxe6 {[%emt 0:01:11]} 17. Bxe5 {[%emt 0:00:31]} Bxe5 {[%emt 0:01:22]} 18. Qxd8 {[%emt 0:00:35]} Rxd8 {[%emt 0:00:31]} 19. Nc3 {[%emt 0:00:27]} b6 {[%emt 0:01:05]} 20. Ng4 {[%emt 0:00:45]} Bd4+ {[%emt 0:00:26]} 21. Kh1 {[%emt 0:00:26]} Kg7 {[%emt 0:00:40]} 22. Rae1 {[%emt 0:01:08]} Ba6 {[%emt 0:01:05]} 23. Rf3 {[%emt 0:00:36]} Rf8 {[%emt 0:02:07]} 24. Ne3 {[%emt 0:01:25]} Rxf3 {[%emt 0:00:49]} 25. Bxf3 {[%emt 0:00:28]} Rf8 {[%emt 0:00:27]} 26. Kg2 {[%emt 0:05:07]} Ng5 {[%emt 0:00:30]} 27. Bd1 {[%emt 0:01:40]} Bxc3 {[%emt 0:03:58]} 28. bxc3 {[%emt 0:00:27]} Nxe4 {[%emt 0:00:27]} 29. c4 {[%emt 0:00:47]} Nd2 {[%emt 0:02:12]} 30. Bb3 {[%emt 0:01:24]} Bb7+ {[%emt 0:00:34]} 31. Nd5 {[%emt 0:00:31]} b5 {[%emt 0:00:38]} 32. Rd1 {[%emt 0:02:02]} bxc4 {[%emt 0:00:38]} 33. Rxd2 {[%emt 0:00:28]} cxb3 {[%emt 0:00:27]} 0-1

[Event "9th RTU Rapid 2019"]
[Site "Riga"]
[Date "2019.08.04"]
[Round "2.20"]
[White "Grinev, Valeriy"]
[Black "Kurpnieks, Vairis"]
[Result "1-0"]
[WhiteElo "2287"]
[BlackElo "1983"]
[PlyCount "65"]
[EventDate "2019.08.05"]
[EventType "swiss"]
[EventCountry "LAT"]
[TimeControl "5400+30"]
[WhiteClock "0:06:31"]
[BlackClock "0:07:26"]

1. d4 {[%emt 1:15:23]} d5 {[%emt 1:15:23]} 2. c4 {[%emt 0:00:28]} dxc4 {[%emt 0:00:27]} 3. e3 {[%emt 0:00:28]} Nf6 {[%emt 0:00:27]} 4. Bxc4 {[%emt 0:00:29]} e6 {[%emt 0:00:27]} 5. Nf3 {[%emt 0:00:28]} a6 {[%emt 0:00:26]} 6. O-O {[%emt 0:00:29]} b5 {[%emt 0:00:27]} 7. Be2 {[%emt 0:00:55]} Bb7 {[%emt 0:00:27]} 8. a4 {[%emt 0:00:34]} b4 {[%emt 0:00:30]} 9. b3 {[%emt 0:00:49]} c5 {[%emt 0:00:32]} 10. Bb2 {[%emt 0:00:29]} Nc6 {[%emt 0:00:30]} 11. Nbd2 {[%emt 0:00:31]} Na5 {[%emt 0:01:28]} 12. Rc1 {[%emt 0:00:53]} Rc8 {[%emt 0:00:27]} 13. Nc4 {[%emt 0:00:53]} Ne4 {[%emt 0:01:39]} 14. Nxa5 {[%emt 0:01:05]} Qxa5 {[%emt 0:00:27]} 15. Nd2 {[%emt 0:00:30]} Nc3 {[%emt 0:01:47]} 16. Nc4 {[%emt 0:02:59]} Nxe2+ {[%emt 0:00:46]} 17. Qxe2 {[%emt 0:00:28]} Qd8 {[%emt 0:00:32]} 18. Rfd1 {[%emt 0:00:42]} Qd5 {[%emt 0:02:23]} 19. f3 {[%emt 0:00:32]} Be7 {[%emt 0:00:33]} 20. dxc5 {[%emt 0:01:03]} Qxc5 {[%emt 0:00:27]} 21. Nd6+ {[%emt 0:00:53]} Bxd6 {[%emt 0:00:47]} 22. Rxc5 {[%emt 0:00:30]} Bxc5 {[%emt 0:00:28]} 23. Bxg7 {[%emt 0:00:29]} Rg8 {[%emt 0:00:29]} 24. Bd4 {[%emt 0:00:31]} Bd6 {[%emt 0:00:51]} 25. e4 {[%emt 0:00:33]} Rc6 {[%emt 0:00:44]} 26. Qd2 {[%emt 0:00:52]} a5 {[%emt 0:00:44]} 27. Bf2 {[%emt 0:00:53]} e5 {[%emt 0:01:19]} 28. Qd5 {[%emt 0:01:03]} Rg6 {[%emt 0:01:04]} 29. Qb5 {[%emt 0:00:37]} Ba8 {[%emt 0:00:49]} 30. Qxa5 {[%emt 0:00:28]} Rc8 {[%emt 0:00:31]} 31. Qa6 {[%emt 0:00:45]} Rd8 {[%emt 0:01:06]} 32. Qb5+ {[%emt 0:00:52]} Kf8 {[%emt 0:00:32]} 33. Rxd6 {[%emt 0:00:30]} 1-0

[Event "9th RTU Rapid 2019"]
[Site "Riga"]
[Date "2019.08.04"]
[Round "2.21"]
[White "Walkusz, Witoslaw"]
[Black "Dubrovin, Robert"]
[Result "0-1"]
[WhiteElo "2138"]
[BlackElo "2282"]
[PlyCount "74"]
[EventDate "2019.08.05"]
[EventType "swiss"]
[EventCountry "LAT"]
[TimeControl "5400+30"]
[WhiteClock "0:00:55"]
[BlackClock "0:00:11"]

1. e4 {[%emt 1:15:25]} e6 {[%emt 1:15:24]} 2. d4 {[%emt 0:00:30]} d5 {[%emt 0:00:27]} 3. Nc3 {[%emt 0:00:29]} Bb4 {[%emt 0:00:27]} 4. a3 {[%emt 0:00:33]} Bxc3+ {[%emt 0:00:31]} 5. bxc3 {[%emt 0:00:26]} dxe4 {[%emt 0:00:37]} 6. Qg4 {[%emt 0:00:27]} Nf6 {[%emt 0:00:27]} 7. Qxg7 {[%emt 0:00:27]} Rg8 {[%emt 0:00:26]} 8. Qh6 {[%emt 0:00:26]} Rg6 {[%emt 0:00:27]} 9. Qd2 {[%emt 0:00:27]} b6 {[%emt 0:00:29]} 10. a4 {[%emt 0:00:38]} Bb7 {[%emt 0:01:19]} 11. a5 {[%emt 0:01:19]} bxa5 {[%emt 0:04:12]} 12. Rxa5 {[%emt 0:01:05]} Nbd7 {[%emt 0:00:39]} 13. c4 {[%emt 0:02:09]} c5 {[%emt 0:01:47]} 14. Rb5 {[%emt 0:04:31]} Bc6 {[%emt 0:00:28]} 15. Rb3 {[%emt 0:00:26]} Rb8 {[%emt 0:02:04]} 16. Ne2 {[%emt 0:03:16]} Rxb3 {[%emt 0:01:48]} 17. cxb3 {[%emt 0:00:27]} Qb6 {[%emt 0:02:03]} 18. Qc3 {[%emt 0:01:39]} cxd4 {[%emt 0:02:30]} 19. Nxd4 {[%emt 0:00:43]} Nc5 {[%emt 0:01:00]} 20. Be3 {[%emt 0:01:28]} Ng4 {[%emt 0:00:51]} 21. Nxc6 {[%emt 0:01:20]} Qxc6 {[%emt 0:00:48]} 22. g3 {[%emt 0:02:14]} Nxe3 {[%emt 0:00:30]} 23. fxe3 {[%emt 0:00:34]} Qb6 {[%emt 0:00:44]} 24. b4 {[%emt 0:00:51]} Na6 {[%emt 0:00:37]} 25. b5 {[%emt 0:00:28]} Nc5 {[%emt 0:00:25]} 26. Be2 {[%emt 0:00:32]} Nd3+ {[%emt 0:00:34]} 27. Kd2 {[%emt 0:00:26]} e5 {[%emt 0:00:47]} 28. Bxd3 {[%emt 0:00:38]} exd3 {[%emt 0:00:37]} 29. Qxe5+ {[%emt 0:00:28]} Re6 {[%emt 0:00:25]} 30. Qd4 {[%emt 0:00:29]} Qa5+ {[%emt 0:00:32]} 31. Qc3 {[%emt 0:00:28]} Qa2+ {[%emt 0:00:31]} 32. Kxd3 {[%emt 0:00:27]} Rd6+ {[%emt 0:00:26]} 33. Ke4 {[%emt 0:00:27]} Qg2+ {[%emt 0:00:29]} 34. Kf4 {[%emt 0:00:28]} Qxh1 {[%emt 0:00:33]} 35. c5 {[%emt 0:00:30]} Qf1+ {[%emt 0:00:35]} 36. Ke4 {[%emt 0:00:36]} Re6+ {[%emt 0:00:27]} 37. Kd5 {[%emt 0:00:32]} Qxb5 {[%emt 0:00:39]} 0-1